bitfinex-derivatives/quotes_BTCF0:USTF0_20251228
["timestamp","ask_amount","ask_price","bid_price","bid_amount"]
[1766931565207,0.02433779,88033.0,88019.0,0.011369]
[1766931565408,0.02433779,88032.0,88019.0,0.011369]
[1766931565610,0.00017045,88035.0,88019.0,0.011369]
[1766931565810,0.02433769,88034.0,88019.0,0.011369]
[1766931566026,0.02433769,88033.0,88019.0,0.011369]
[1766931566227,0.02433769,88032.0,88017.0,0.00017045]
[1766931566426,0.00017045,88035.0,88017.0,0.00017045]
[1766931566626,0.02433762,88034.0,88017.0,0.00017045]
[1766931566826,0.02433762,88033.0,88017.0,0.00017045]
[1766931567028,0.02433762,88032.0,88017.0,0.00017045]
[1766931567225,0.00017045,88035.0,88018.0,0.0113691]
[1766931567524,0.02433755,88034.0,88018.0,0.0113691]
[1766931567724,0.02433755,88033.0,88018.0,0.0113691]
[1766931568025,0.02433755,88032.0,88018.0,0.0113691]
[1766931568222,0.00017045,88035.0,88018.0,0.0113691]
[1766931568527,0.0243375,88034.0,88017.0,0.00017045]
[1766931568718,0.0357048,88033.0,88017.0,0.00017045]
[1766931568910,0.0243375,88032.0,88017.0,0.00017045]
[1766931569116,0.00017045,88035.0,88017.0,0.00017045]
[1766931569414,0.02433744,88034.0,88017.0,0.00017045]
[1766931569614,0.02433744,88033.0,88017.0,0.00017045]
[1766931569826,0.02433744,88032.0,88017.0,0.00017045]
[1766931570021,0.00017045,88035.0,88017.0,0.00017045]
[1766931570326,0.0113673,88033.0,88017.0,0.00017045]
[1766931570525,0.02433743,88032.0,88017.0,0.00017045]
[1766931570728,0.0113673,88033.0,88017.0,0.00017045]
[1766931572627,0.0113676,88031.0,88017.0,0.00017045]
[1766931572929,0.0113672,88034.0,88017.0,0.00017045]
[1766931573128,0.02433731,88033.0,88017.0,0.00017045]
[1766931573331,0.0113672,88034.0,88017.0,0.00017045]
[1766931573626,0.02433714,88033.0,88017.0,0.00017045]
[1766931573928,0.00017045,88035.0,88017.0,0.00017045]
[1766931574229,0.02433714,88034.0,88017.0,0.00017045]
[1766931574526,0.02433714,88033.0,88017.0,0.00017045]
[1766931574824,0.00017045,88035.0,88017.0,0.00017045]
[1766931575020,0.02433698,88034.0,88017.0,0.00017045]
[1766931575227,0.02433698,88033.0,88017.0,0.00017045]
[1766931575421,0.00017045,88035.0,88017.0,0.00017045]
[1766931575621,0.02433686,88034.0,88017.0,0.00017045]
[1766931575820,0.02433686,88033.0,88017.0,0.00017045]
[1766931576022,0.00017045,88035.0,88017.0,0.00017045]
[1766931576225,0.02433669,88034.0,88017.0,0.00017045]
[1766931576528,0.00017045,88035.0,88017.0,0.00017045]
[1766931576529,0.02433669,88033.0,88017.0,0.00017045]
[1766931576715,0.01153755,88035.0,88017.0,0.00017045]
[1766931576920,0.0243367,88034.0,88017.0,0.00017045]
[1766931577118,0.0243367,88033.0,88017.0,0.00017045]
[1766931577319,0.01153755,88035.0,88017.0,0.00017045]
[1766931577621,0.02433652,88034.0,88008.0,0.06124214]
[1766931577929,0.02433652,88033.0,88012.0,0.0113699]
[1766931578227,0.0113672,88034.0,88009.0,0.15352]
[1766931578526,0.02433641,88033.0,88009.0,0.15352]
[1766931578728,0.00017045,88035.0,88009.0,0.15352]
[1766931578929,0.02433641,88034.0,88009.0,0.15352]
[1766931579129,0.02433641,88033.0,88009.0,0.15352]
[1766931579332,0.00017045,88035.0,88009.0,0.15352]
[1766931579531,0.02433625,88034.0,88009.0,0.15352]
[1766931579831,0.02433625,88033.0,88016.0,0.0113695]
[1766931580015,0.00017045,88035.0,88016.0,0.0113695]
[1766931580211,0.02433597,88034.0,88016.0,0.0113695]
[1766931580412,0.02433597,88033.0,88016.0,0.0113695]
[1766931580616,0.00017045,88035.0,88016.0,0.0113695]
[1766931580817,0.02433597,88034.0,88016.0,0.0113695]
[1766931581028,0.02433597,88033.0,88016.0,0.0113695]
[1766931581226,0.00017045,88035.0,88016.0,0.0113695]
[1766931581418,0.02433606,88034.0,88016.0,0.0113695]
[1766931581727,0.02433606,88033.0,88016.0,0.0113695]
[1766931581926,0.00017045,88035.0,88016.0,0.0113695]
[1766931582126,0.02433606,88034.0,88013.0,0.0113698]
[1766931582421,0.02433606,88033.0,88013.0,0.0113698]
[1766931582727,0.02433605,88032.0,88013.0,0.0113698]
[1766931582926,0.00017045,88035.0,88013.0,0.0113698]
[1766931583116,0.02433606,88034.0,88013.0,0.0113698]
[1766931583316,0.02433606,88033.0,88013.0,0.0113698]
[1766931583527,0.02433606,88032.0,88013.0,0.0113698]
[1766931583728,0.00017045,88035.0,88013.0,0.0113698]
[1766931583930,0.02433603,88034.0,88013.0,0.0113698]
[1766931584131,0.02433603,88033.0,88013.0,0.0113698]
[1766931584323,0.02433603,88032.0,88015.0,0.0113695]
[1766931584621,0.00017045,88035.0,88015.0,0.0113695]
[1766931584822,0.02433601,88034.0,88015.0,0.0113695]
[1766931585123,0.02433601,88033.0,88015.0,0.0113695]
[1766931585326,0.02433601,88032.0,88015.0,0.0113695]
[1766931585528,0.02433601,88031.0,88015.0,0.0113695]
[1766931585726,0.02433601,88030.0,88015.0,0.0113695]
[1766931585929,0.00017045,88035.0,88015.0,0.0113695]
[1766931586228,0.02433601,88034.0,88015.0,0.0113695]
[1766931586423,0.02433601,88033.0,88015.0,0.0113695]
[1766931586623,0.00017045,88035.0,88015.0,0.0113695]
[1766931586624,0.02433601,88032.0,88015.0,0.0113695]
[1766931586826,0.02433601,88031.0,88015.0,0.0113695]
[1766931587025,0.02433601,88030.0,88015.0,0.0113695]
[1766931587228,0.00017045,88035.0,88015.0,0.0113695]
[1766931587431,0.02433607,88034.0,88015.0,0.0113695]
[1766931587732,0.02433607,88033.0,88015.0,0.0113695]
[1766931587935,0.02433607,88032.0,88015.0,0.0113695]
[1766931588233,0.02433607,88031.0,88015.0,0.0113695]
[1766931588436,0.02433607,88030.0,88015.0,0.0113695]
[1766931588634,0.00017045,88035.0,88015.0,0.0113695]
[1766931588837,0.02433612,88034.0,88015.0,0.0113695]
[1766931589036,0.02433612,88033.0,88015.0,0.0113695]
[1766931589232,0.02433612,88032.0,88015.0,0.0113695]
[1766931589436,0.02433612,88031.0,88015.0,0.0113695]
[1766931589640,0.02433612,88030.0,88017.0,0.0113693]
[1766931589935,0.00017045,88035.0,88019.0,0.011369]
[1766931590127,0.02430253,88034.0,88009.0,0.15352]
[1766931590332,0.02430253,88033.0,88009.0,0.15352]
[1766931590628,0.02430253,88032.0,88009.0,0.15352]
[1766931590936,0.00017045,88035.0,88018.0,0.0113691]
[1766931590937,0.02430253,88031.0,88018.0,0.0113691]
[1766931591139,0.00017045,88035.0,88018.0,0.0113691]
[1766931591336,0.02430285,88034.0,88018.0,0.0113691]
[1766931591535,0.02430285,88033.0,88018.0,0.0113691]
[1766931591727,0.00017045,88035.0,88018.0,0.0113691]
[1766931591728,0.02430285,88032.0,88018.0,0.0113691]
[1766931591928,0.02430285,88031.0,88018.0,0.0113691]
[1766931592140,0.00017045,88035.0,88018.0,0.0113691]
[1766931592341,0.02430305,88034.0,88018.0,0.0113691]
[1766931592646,0.02430305,88033.0,88018.0,0.0113691]
[1766931592824,0.02430305,88032.0,88018.0,0.0113691]
[1766931593029,0.02430305,88031.0,88018.0,0.0113691]
[1766931593226,0.02430305,88030.0,88018.0,0.0113691]
[1766931593429,0.00017045,88035.0,88018.0,0.0113691]
[1766931593627,0.0243031,88034.0,88018.0,0.0113691]
[1766931593831,0.0243031,88033.0,88018.0,0.0113691]
[1766931594128,0.0243031,88032.0,88018.0,0.0113691]
[1766931594331,0.0811831,88031.0,88018.0,0.0113691]
[1766931594630,0.01345552,88030.0,88018.0,0.0113691]
[1766931594833,0.05688,88031.0,88018.0,0.0113691]
[1766931599840,0.05688,88031.0,88015.0,0.0113695]
[1766931600544,0.05688,88031.0,88017.0,0.0113693]
[1766931601238,0.05688,88031.0,88021.0,0.0113687]
[1766931603441,0.05688,88031.0,88011.0,0.06124214]
[1766931603742,0.05688,88031.0,88018.0,0.0113692]
[1766931605143,0.05688,88031.0,88020.0,0.0113689]
[1766931609152,0.05688,88030.0,88022.0,0.0113686]
[1766931609449,0.04690386,88030.0,88024.0,0.0113684]
[1766931609640,0.04690386,88030.0,88010.0,0.0113702]
[1766931609842,0.04690386,88030.0,88023.0,0.0113685]
[1766931610846,0.05688,88030.0,88023.0,0.0113685]
[1766931611948,0.00017045,88035.0,88025.0,0.0113682]
[1766931612142,0.05688,88032.0,88022.0,0.0113686]
[1766931612548,0.04634162,88032.0,88022.0,0.0113686]
[1766931618252,0.04634162,88032.0,88018.0,0.0113691]
[1766931622656,0.04634162,88032.0,88015.0,0.0113696]
[1766931631063,0.04634162,88032.0,88017.0,0.0113693]
[1766931635165,0.02461112,88031.0,88017.0,0.0113693]
[1766931635367,0.04634162,88032.0,88017.0,0.0113693]
[1766931635670,0.02461131,88031.0,88017.0,0.0113693]
[1766931635866,0.04634162,88032.0,88017.0,0.0113693]
[1766931636068,0.02461131,88031.0,88017.0,0.0113693]
[1766931636260,0.04634162,88032.0,88017.0,0.0113693]
[1766931636460,0.02461155,88031.0,88017.0,0.0113693]
[1766931636664,0.04634162,88032.0,88017.0,0.0113693]
[1766931636864,0.02461155,88031.0,88017.0,0.0113693]
[1766931637060,0.04634162,88032.0,88017.0,0.0113693]
[1766931637260,0.02461185,88031.0,88017.0,0.0113693]
[1766931637469,0.04634162,88032.0,88017.0,0.0113693]
[1766931637670,0.02461185,88031.0,88017.0,0.0113693]
[1766931637871,0.04634162,88032.0,88017.0,0.0113693]
[1766931638169,0.02461185,88031.0,88017.0,0.0113693]
[1766931638360,0.04634162,88032.0,88017.0,0.0113693]
[1766931638561,0.02461222,88031.0,88017.0,0.0113693]
[1766931638761,0.04634162,88032.0,88017.0,0.0113693]
[1766931638977,0.02461222,88031.0,88017.0,0.0113693]
[1766931639177,0.04634162,88032.0,88017.0,0.0113693]
[1766931639377,0.02461269,88031.0,88017.0,0.0113693]
[1766931639584,0.04634162,88032.0,88017.0,0.0113693]
[1766931639775,0.02461269,88031.0,88017.0,0.0113693]
[1766931639972,0.04634162,88032.0,88017.0,0.0113693]
[1766931640272,0.02461269,88031.0,88017.0,0.0113693]
[1766931640470,0.04634162,88032.0,88017.0,0.0113693]
[1766931640677,0.02461313,88031.0,88017.0,0.0113693]
[1766931640975,0.04634162,88032.0,88017.0,0.0113693]
[1766931641170,0.0246137,88031.0,88017.0,0.0113693]
[1766931641370,0.04634162,88032.0,88017.0,0.0113693]
[1766931641585,0.0246137,88031.0,88017.0,0.0113693]
[1766931641781,0.04634162,88032.0,88017.0,0.0113693]
[1766931641975,0.0246137,88031.0,88017.0,0.0113693]
[1766931642176,0.04634162,88032.0,88017.0,0.0113693]
[1766931642377,0.02461369,88031.0,88017.0,0.0113693]
[1766931642673,0.04634162,88032.0,88017.0,0.0113693]
[1766931642872,0.02461369,88031.0,88017.0,0.0113693]
[1766931643075,0.04634162,88032.0,88017.0,0.0113693]
[1766931643277,0.02461372,88031.0,88017.0,0.0113693]
[1766931643485,0.04634162,88032.0,88017.0,0.0113693]
[1766931643690,0.02461372,88031.0,88017.0,0.0113693]
[1766931643986,0.04634162,88032.0,88017.0,0.0113693]
[1766931644288,0.02461376,88031.0,88017.0,0.0113693]
[1766931644488,0.04634162,88032.0,88017.0,0.0113693]
[1766931644786,0.02461376,88031.0,88017.0,0.0113693]
[1766931644981,0.04634162,88032.0,88017.0,0.0113693]
[1766931645290,0.04634162,88032.0,88013.0,0.06124214]
[1766931645484,0.04634162,88032.0,88012.0,0.06124214]
[1766931645686,0.04634162,88032.0,88016.0,0.0113694]
[1766931647184,0.04634162,88032.0,88018.0,0.0113691]
[1766931656900,0.04634162,88032.0,88015.0,0.0113695]
[1766931658599,0.0113672,88034.0,88015.0,0.0113695]
[1766931658901,0.02464528,88033.0,88015.0,0.0113695]
[1766931659088,0.02464528,88032.0,88015.0,0.0113695]
[1766931659287,0.0113672,88034.0,88015.0,0.0113695]
[1766931659489,0.02464527,88033.0,88015.0,0.0113695]
[1766931659688,0.02464527,88032.0,88017.0,0.0113693]
[1766931659885,0.0113672,88034.0,88017.0,0.0113693]
[1766931660089,0.02464527,88033.0,88017.0,0.0113693]
[1766931660297,0.02464527,88032.0,88017.0,0.0113693]
[1766931660498,0.0113672,88034.0,88017.0,0.0113693]
[1766931660699,0.02464527,88033.0,88017.0,0.0113693]
[1766931660898,0.02464527,88032.0,88017.0,0.0113693]
[1766931661100,0.0113672,88034.0,88017.0,0.0113693]
[1766931661299,0.02464526,88033.0,88017.0,0.0113693]
[1766931661501,0.02464526,88032.0,88017.0,0.0113693]
[1766931661704,0.0113672,88034.0,88017.0,0.0113693]
[1766931661894,0.02464526,88033.0,88017.0,0.0113693]
[1766931662098,0.02464526,88032.0,88017.0,0.0113693]
[1766931662398,0.0113672,88034.0,88014.0,0.0113697]
[1766931662600,0.02464526,88033.0,88014.0,0.0113697]
[1766931662799,0.02464526,88032.0,88014.0,0.0113697]
[1766931663000,0.0113672,88034.0,88014.0,0.0113697]
[1766931663201,0.02464526,88033.0,88014.0,0.0113697]
[1766931663400,0.02464526,88032.0,88014.0,0.0113697]
[1766931663700,0.0113672,88034.0,88014.0,0.0113697]
[1766931664001,0.02464526,88033.0,88016.0,0.0113694]
[1766931664299,0.02464526,88032.0,88016.0,0.0113694]
[1766931664500,0.0113672,88034.0,88016.0,0.0113694]
[1766931664703,0.02464527,88033.0,88016.0,0.0113694]
[1766931664907,0.02464527,88032.0,88016.0,0.0113694]
[1766931665205,0.0113672,88034.0,88016.0,0.0113694]
[1766931665408,0.02464527,88033.0,88016.0,0.0113694]
[1766931665606,0.02464527,88032.0,88016.0,0.0113694]
[1766931665809,0.0113672,88034.0,88016.0,0.0113694]
[1766931666008,0.02464527,88033.0,88016.0,0.0113694]
[1766931666203,0.02464527,88032.0,88016.0,0.0113694]
[1766931666403,0.0113672,88034.0,88016.0,0.0113694]
[1766931666604,0.02464528,88033.0,88016.0,0.0113694]
[1766931666903,0.02464528,88032.0,88016.0,0.0113694]
[1766931667099,0.0113672,88034.0,88016.0,0.0113694]
[1766931667301,0.0246453,88033.0,88016.0,0.0113694]
[1766931667501,0.0246453,88032.0,88016.0,0.0113694]
[1766931667700,0.0113672,88034.0,88016.0,0.0113694]
[1766931668002,0.0246453,88033.0,88016.0,0.0113694]
[1766931668299,0.0246453,88032.0,88016.0,0.0113694]
[1766931668599,0.0113672,88034.0,88016.0,0.0113694]
[1766931668798,0.02464531,88033.0,88016.0,0.0113694]
[1766931669004,0.02464531,88032.0,88016.0,0.0113694]
[1766931669205,0.0113672,88034.0,88016.0,0.0113694]
[1766931669407,0.02464533,88033.0,88016.0,0.0113694]
[1766931669609,0.02464533,88032.0,88016.0,0.0113694]
[1766931669810,0.0113672,88034.0,88016.0,0.0113694]
[1766931670107,0.02464533,88033.0,88016.0,0.0113694]
[1766931670299,0.02464533,88032.0,88016.0,0.0113694]
[1766931670499,0.0113672,88034.0,88016.0,0.0113694]
[1766931670701,0.02464536,88033.0,88016.0,0.0113694]
[1766931671000,0.02464536,88032.0,88016.0,0.0113694]
[1766931671202,0.0113672,88034.0,88016.0,0.0113694]
[1766931671408,0.02464539,88033.0,88016.0,0.0113694]
[1766931671596,0.02464539,88032.0,88016.0,0.0113694]
[1766931671799,0.0113672,88034.0,88016.0,0.0113694]
[1766931672100,0.02464538,88033.0,88016.0,0.0113694]
[1766931672299,0.02464538,88032.0,88016.0,0.0113694]
[1766931672500,0.0113672,88034.0,88016.0,0.0113694]
[1766931672795,0.02464541,88033.0,88016.0,0.0113694]
[1766931672998,0.02464541,88032.0,88016.0,0.0113694]
[1766931673194,0.0113672,88034.0,88016.0,0.0113694]
[1766931673398,0.02464545,88033.0,88016.0,0.0113694]
[1766931673608,0.02464545,88032.0,88016.0,0.0113694]
[1766931673907,0.0113672,88034.0,88016.0,0.0113694]
[1766931674110,0.02464545,88033.0,88016.0,0.0113694]
[1766931674299,0.02464545,88032.0,88016.0,0.0113694]
[1766931674595,0.0113672,88034.0,88016.0,0.0113694]
[1766931674799,0.02464552,88033.0,88016.0,0.0113694]
[1766931675004,0.02464552,88032.0,88016.0,0.0113694]
[1766931675211,0.0113672,88034.0,88016.0,0.0113694]
[1766931675509,0.02464563,88033.0,88016.0,0.0113694]
[1766931675710,0.0113672,88034.0,88016.0,0.0113694]
[1766931676008,0.02464564,88033.0,88016.0,0.0113694]
[1766931676210,0.0113672,88034.0,88016.0,0.0113694]
[1766931676506,0.02464562,88033.0,88016.0,0.0113694]
[1766931676708,0.0113672,88034.0,88016.0,0.0113694]
[1766931676908,0.02464562,88033.0,88016.0,0.0113694]
[1766931677110,0.0113672,88034.0,88016.0,0.0113694]
[1766931677310,0.0246456,88033.0,88016.0,0.0113694]
[1766931677610,0.0113672,88034.0,88016.0,0.0113694]
[1766931677814,0.0246456,88033.0,88016.0,0.0113694]
[1766931678000,0.0113672,88034.0,88016.0,0.0113694]
[1766931678308,0.0246456,88033.0,88016.0,0.0113694]
[1766931678508,0.0113672,88034.0,88016.0,0.0113694]
[1766931678708,0.02464559,88033.0,88016.0,0.0113694]
[1766931679008,0.0113672,88034.0,88016.0,0.0113694]
[1766931679209,0.02464559,88033.0,88016.0,0.0113694]
[1766931679509,0.0113672,88034.0,88016.0,0.0113694]
[1766931679709,0.02464558,88033.0,88016.0,0.0113694]
[1766931679910,0.0113672,88034.0,88016.0,0.0113694]
[1766931680211,0.02464288,88033.0,88016.0,0.0113694]
[1766931680514,0.0113672,88034.0,88016.0,0.0113694]
[1766931680706,0.02464288,88033.0,88016.0,0.0113694]
[1766931680903,0.0113672,88034.0,88016.0,0.0113694]
[1766931681106,0.0113677,88030.0,88011.0,0.09664]
[1766931681405,0.00017045,88035.0,88011.0,0.09664]
[1766931681599,0.0113676,88031.0,88011.0,0.09664]
[1766931682114,0.0113676,88031.0,88011.0,0.10801]
[1766931684115,0.05688,88032.0,88014.0,0.0113697]
[1766931684318,0.02463758,88031.0,88014.0,0.0113697]
[1766931684515,0.05688,88032.0,88014.0,0.0113697]
[1766931684716,0.02463758,88031.0,88014.0,0.0113697]
[1766931684916,0.05688,88032.0,88014.0,0.0113697]
[1766931685116,0.02463758,88031.0,88014.0,0.0113697]
[1766931685316,0.05688,88032.0,88014.0,0.0113697]
[1766931685317,0.02463758,88030.0,88014.0,0.0113697]
[1766931685516,0.02463668,88029.0,88014.0,0.0113697]
[1766931685720,0.02463668,88028.0,88014.0,0.0113697]
[1766931686014,0.05688,88032.0,88014.0,0.0113697]
[1766931686218,0.02463657,88031.0,88014.0,0.0113697]
[1766931686514,0.02463657,88030.0,88014.0,0.0113697]
[1766931686715,0.02463657,88029.0,88014.0,0.0113697]
[1766931686903,0.05688,88032.0,88014.0,0.0113697]
[1766931687103,0.02463595,88031.0,88014.0,0.0113697]
[1766931687306,0.02463595,88030.0,88014.0,0.0113697]
[1766931687503,0.02463595,88029.0,88014.0,0.0113697]
[1766931687707,0.05688,88032.0,88014.0,0.0113697]
[1766931688006,0.02463534,88031.0,88014.0,0.0113697]
[1766931688204,0.02463534,88030.0,88014.0,0.0113697]
[1766931688421,0.02463534,88029.0,88014.0,0.0113697]
[1766931688717,0.05688,88032.0,88014.0,0.0113697]
[1766931689018,0.02463483,88031.0,88014.0,0.0113697]
[1766931689218,0.02463483,88030.0,88014.0,0.0113697]
[1766931689516,0.02463483,88029.0,88014.0,0.0113697]
[1766931689718,0.05688,88032.0,88014.0,0.0113697]
[1766931690020,0.02463441,88031.0,88014.0,0.0113697]
[1766931690316,0.02463441,88030.0,88014.0,0.0113697]
[1766931690618,0.02463441,88029.0,88016.0,0.0113694]
[1766931690818,0.05688,88032.0,88016.0,0.0113694]
[1766931691023,0.02463418,88031.0,88016.0,0.0113694]
[1766931691211,0.02463418,88030.0,88016.0,0.0113694]
[1766931691408,0.02463418,88029.0,88016.0,0.0113694]
[1766931691609,0.05688,88032.0,88016.0,0.0113694]
[1766931691814,0.02463389,88031.0,88016.0,0.0113694]
[1766931692104,0.02463389,88030.0,88016.0,0.0113694]
[1766931692318,0.02463389,88029.0,88016.0,0.0113694]
[1766931692519,0.05688,88032.0,88016.0,0.0113694]
[1766931692718,0.02463367,88031.0,88016.0,0.0113694]
[1766931692921,0.02463367,88030.0,88016.0,0.0113694]
[1766931693227,0.02463367,88029.0,88016.0,0.0113694]
[1766931693412,0.05688,88032.0,88016.0,0.0113694]
[1766931693614,0.0246335,88031.0,88016.0,0.0113694]
[1766931693813,0.0246335,88030.0,88016.0,0.0113694]
[1766931694016,0.0246335,88029.0,88016.0,0.0113694]
[1766931694218,0.05688,88032.0,88016.0,0.0113694]
[1766931694516,0.02463338,88031.0,88016.0,0.0113694]
[1766931694718,0.02463338,88030.0,88016.0,0.0113694]
[1766931694919,0.02463338,88029.0,88016.0,0.0113694]
[1766931695125,0.05688,88032.0,88016.0,0.0113694]
[1766931695317,0.02463332,88031.0,88016.0,0.0113694]
[1766931695517,0.02463332,88030.0,88016.0,0.0113694]
[1766931695823,0.05688,88032.0,88016.0,0.0113694]
[1766931696014,0.02463332,88031.0,88016.0,0.0113694]
[1766931696216,0.02463332,88030.0,88016.0,0.0113694]
[1766931696514,0.05688,88032.0,88016.0,0.0113694]
[1766931696716,0.02463331,88031.0,88016.0,0.0113694]
[1766931696915,0.02463331,88030.0,88016.0,0.0113694]
[1766931697115,0.05688,88032.0,88016.0,0.0113694]
[1766931697326,0.02463334,88031.0,88016.0,0.0113694]
[1766931697524,0.02463334,88030.0,88016.0,0.0113694]
[1766931697723,0.05688,88032.0,88016.0,0.0113694]
[1766931697914,0.02463334,88031.0,88016.0,0.0113694]
[1766931698116,0.02463334,88030.0,88016.0,0.0113694]
[1766931698322,0.05688,88032.0,88016.0,0.0113694]
[1766931698522,0.02463342,88031.0,88016.0,0.0113694]
[1766931698823,0.02463342,88030.0,88016.0,0.0113694]
[1766931699017,0.05688,88032.0,88016.0,0.0113694]
[1766931699218,0.02463342,88031.0,88016.0,0.0113694]
[1766931699414,0.02463342,88030.0,88016.0,0.0113694]
[1766931699611,0.05688,88032.0,88016.0,0.0113694]
[1766931699812,0.02463355,88031.0,88016.0,0.0113694]
[1766931700028,0.02463355,88030.0,88016.0,0.0113694]
[1766931700226,0.05688,88032.0,88016.0,0.0113694]
[1766931700428,0.02463374,88031.0,88016.0,0.0113694]
[1766931700726,0.02463374,88030.0,88016.0,0.0113694]
[1766931700928,0.05688,88032.0,88016.0,0.0113694]
[1766931701131,0.02463374,88031.0,88016.0,0.0113694]
[1766931701429,0.02463374,88030.0,88016.0,0.0113694]
[1766931701631,0.05688,88032.0,88016.0,0.0113694]
[1766931701829,0.02463399,88031.0,88016.0,0.0113694]
[1766931702129,0.02463399,88030.0,88016.0,0.0113694]
[1766931702428,0.05688,88032.0,88016.0,0.0113694]
[1766931702624,0.02463429,88031.0,88016.0,0.0113694]
[1766931702822,0.02463429,88030.0,88013.0,0.0113698]
[1766931703022,0.05688,88032.0,88013.0,0.0113698]
[1766931703233,0.02463429,88031.0,88013.0,0.0113698]
[1766931703528,0.02463429,88030.0,88013.0,0.0113698]
[1766931703729,0.05688,88032.0,88013.0,0.0113698]
[1766931703931,0.02463467,88031.0,88013.0,0.0113698]
[1766931704125,0.02463467,88030.0,88013.0,0.0113698]
[1766931704330,0.05688,88032.0,88013.0,0.0113698]
[1766931704532,0.02463511,88031.0,88013.0,0.0113698]
[1766931704831,0.02463511,88030.0,88013.0,0.0113698]
[1766931705032,0.05688,88032.0,88013.0,0.0113698]
[1766931705325,0.02463511,88031.0,88013.0,0.0113698]
[1766931705530,0.02463511,88030.0,88013.0,0.0113698]
[1766931705733,0.05688,88032.0,88013.0,0.0113698]
[1766931705922,0.02463565,88031.0,88013.0,0.0113698]
[1766931706232,0.02463565,88030.0,88013.0,0.0113698]
[1766931706530,0.02463679,88029.0,88011.0,0.09664]
[1766931706734,0.0113675,88031.0,88011.0,0.09664]
[1766931706933,0.02463679,88030.0,88011.0,0.09664]
[1766931707134,0.02463679,88029.0,88011.0,0.09664]
[1766931707323,0.0113675,88031.0,88011.0,0.09664]
[1766931707524,0.02463739,88030.0,88011.0,0.09664]
[1766931707723,0.02463739,88029.0,88012.0,0.01137]
[1766931707923,0.0113675,88031.0,88012.0,0.01137]
[1766931708219,0.02463736,88030.0,88012.0,0.01137]
[1766931708421,0.02463736,88029.0,88012.0,0.01137]
[1766931708733,0.0113675,88031.0,88012.0,0.01137]
[1766931709033,0.02463816,88030.0,88012.0,0.01137]
[1766931709235,0.02463816,88029.0,88012.0,0.01137]
[1766931709427,0.05688,88032.0,88012.0,0.01137]
[1766931709732,0.02463921,88031.0,88012.0,0.01137]
[1766931709932,0.02463921,88030.0,88012.0,0.01137]
[1766931710125,0.02463921,88029.0,88012.0,0.01137]
[1766931710326,0.05688,88032.0,88012.0,0.01137]
[1766931710527,0.02454462,88031.0,88012.0,0.01137]
[1766931710728,0.02454462,88030.0,88012.0,0.01137]
[1766931710926,0.02454462,88029.0,88012.0,0.01137]
[1766931711127,0.0682475,88032.0,88011.0,0.09664]
[1766931711335,0.02454653,88031.0,88011.0,0.09664]
[1766931711536,0.02454653,88030.0,88011.0,0.09664]
[1766931711734,0.02454653,88029.0,88011.0,0.09664]
[1766931712034,0.0682475,88032.0,88011.0,0.09664]
[1766931712226,0.02454653,88031.0,88011.0,0.09664]
[1766931712426,0.02454653,88030.0,88012.0,0.01137]
[1766931712627,0.02454653,88029.0,88012.0,0.01137]
[1766931712828,0.0682475,88032.0,88012.0,0.01137]
[1766931713021,0.02454651,88031.0,88012.0,0.01137]
[1766931713338,0.0113681,88027.0,88010.0,0.06124214]
[1766931713636,0.0113681,88027.0,88009.0,0.11812214]
[1766931714036,0.0113677,88030.0,88009.0,0.11812214]
[1766931714237,0.02483293,88029.0,88009.0,0.12949244]
[1766931714427,0.0113677,88030.0,88009.0,0.12949244]
[1766931714627,0.0248328,88029.0,88009.0,0.12949244]
[1766931714925,0.0113677,88030.0,88009.0,0.12949244]
[1766931715224,0.0248328,88029.0,88009.0,0.12949244]
[1766931715422,0.0113677,88030.0,88009.0,0.12949244]
[1766931715628,0.02483272,88029.0,88009.0,0.12949244]
[1766931715929,0.0113677,88030.0,88009.0,0.12949244]
[1766931716129,0.02483274,88029.0,88009.0,0.12949244]
[1766931716434,0.0113677,88030.0,88009.0,0.12949244]
[1766931716636,0.02483263,88029.0,88009.0,0.12949244]
[1766931716838,0.0113677,88030.0,88009.0,0.12949244]
[1766931717135,0.02483263,88029.0,88009.0,0.12949244]
[1766931717336,0.0113677,88030.0,88009.0,0.12949244]
[1766931717537,0.02483254,88029.0,88009.0,0.12949244]
[1766931717737,0.0113677,88030.0,88009.0,0.12949244]
[1766931717938,0.02483253,88029.0,88009.0,0.12949244]
[1766931718135,0.02483253,88028.0,88009.0,0.12949244]
[1766931718438,0.0113677,88030.0,88009.0,0.12949244]
[1766931718639,0.02483245,88029.0,88009.0,0.12949244]
[1766931718839,0.0113677,88030.0,88009.0,0.12949244]
[1766931719039,0.02483245,88029.0,88009.0,0.12949244]
[1766931719240,0.0113677,88030.0,88009.0,0.12949244]
[1766931719442,0.02483239,88029.0,88009.0,0.12949244]
[1766931719641,0.0113677,88030.0,88009.0,0.12949244]
[1766931719840,0.00017045,88035.0,88020.0,0.0113689]
[1766931720335,0.00017045,88035.0,88023.0,0.0113684]
[1766931720727,0.0376,88039.0,88023.0,0.0113684]
[1766931720932,0.0376,88039.0,88019.0,0.0113691]
[1766931721134,0.0376,88039.0,88018.0,0.09664]
[1766931721435,0.0376,88039.0,88017.0,0.05688]
[1766931722034,0.00017045,88037.0,88019.0,0.00017045]
[1766931723540,0.0113669,88036.0,88019.0,0.00017045]
[1766931726933,0.00017045,88037.0,88019.0,0.00017045]
[1766931731847,0.02511153,88036.0,88019.0,0.00017045]
[1766931732147,0.02511153,88035.0,88019.0,0.00017045]
[1766931732347,0.02511153,88034.0,88019.0,0.00017045]
[1766931732548,0.02511153,88033.0,88019.0,0.00017045]
[1766931732735,0.02511153,88032.0,88020.0,0.0113689]
[1766931732940,0.00017045,88037.0,88019.0,0.00017045]
[1766931733235,0.02511147,88036.0,88019.0,0.00017045]
[1766931733438,0.02511147,88035.0,88019.0,0.00017045]
[1766931733733,0.02511147,88034.0,88019.0,0.00017045]
[1766931733934,0.02511147,88033.0,88019.0,0.00017045]
[1766931734137,0.02511147,88032.0,88019.0,0.00017045]
[1766931734338,0.00017045,88037.0,88019.0,0.00017045]
[1766931734548,0.02511139,88036.0,88019.0,0.00017045]
[1766931734748,0.02511139,88035.0,88019.0,0.00017045]
[1766931734939,0.02511139,88034.0,88019.0,0.00017045]
[1766931735140,0.00017045,88037.0,88019.0,0.00017045]
[1766931735435,0.02511136,88036.0,88019.0,0.00017045]
[1766931735640,0.02511136,88035.0,88019.0,0.00017045]
[1766931735840,0.02511136,88034.0,88019.0,0.00017045]
[1766931736040,0.00017045,88037.0,88019.0,0.00017045]
[1766931736241,0.02511136,88036.0,88019.0,0.00017045]
[1766931736442,0.02511136,88035.0,88019.0,0.00017045]
[1766931736642,0.02511136,88034.0,88019.0,0.00017045]
[1766931736943,0.00017045,88037.0,88019.0,0.00017045]
[1766931737143,0.02511136,88036.0,88019.0,0.00017045]
[1766931737442,0.02511136,88035.0,88019.0,0.00017045]
[1766931737642,0.02511136,88034.0,88019.0,0.00017045]
[1766931737843,0.00017045,88037.0,88019.0,0.00017045]
[1766931738043,0.02511149,88036.0,88019.0,0.00017045]
[1766931738242,0.00017045,88037.0,88019.0,0.00017045]